[Event "December 12 Late 2023"]
[Site "https://www.chess.com"]
[Date "2023.12.12"]
[Round "2"]
[White "Salem, A.R. Saleh"]
[Black "Ballester Llagaria, Luis Eduardo"]
[Result "1-0"]
[Board "18"]
[TimeControl "180+1"]
[WhiteFideId "9301348"]
[BlackFideId "2297620"]
[WhiteElo "2987"]
[BlackElo "2586"]
[WhiteTeam "UAE"]
[BlackTeam "ESP"]
[WhiteClock "0:00:18"]
[BlackClock "0:00:11"]

1. d4 {[%clk 0:02:56]}  d5 {[%clk 0:02:59]} 2. c4 {[%clk 0:02:57]}  dxc4 {[%clk 0:03:00]} 3. Nf3 {[%clk 0:02:56]}  Nf6 {[%clk 0:02:59]} 4. e3 {[%clk 0:02:57]}  a6 {[%clk 0:02:59]} 5. a4 {[%clk 0:02:52]}  e6 {[%clk 0:03:00]} 6. Bxc4 {[%clk 0:02:51]}  c5 {[%clk 0:02:59]} 7. O-O {[%clk 0:02:49]}  b6 {[%clk 0:03:00]} 8. Qe2 {[%clk 0:02:44]}  Bb7 {[%clk 0:03:00]} 9. Rd1 {[%clk 0:02:44]}  Nbd7 {[%clk 0:02:56]} 10. Nc3 {[%clk 0:02:43]}  Qc7 {[%clk 0:02:57]} 11. d5 {[%clk 0:02:39]}  exd5 {[%clk 0:02:57]} 12. Nxd5 {[%clk 0:02:39]}  Nxd5 {[%clk 0:02:58]} 13. Bxd5 {[%clk 0:02:39]}  Bxd5 {[%clk 0:02:59]} 14. Rxd5 {[%clk 0:02:39]}  Be7 {[%clk 0:03:00]} 15. e4 {[%clk 0:02:37]}  Qb7 {[%clk 0:03:00]} 16. Bg5 {[%clk 0:02:30]}  f6 {[%clk 0:02:49]} 17. Bf4 {[%clk 0:02:27]}  O-O {[%clk 0:02:39]} 18. Rad1 {[%clk 0:02:26]}  Rfd8 {[%clk 0:02:34]} 19. h4 {[%clk 0:02:19]}  b5 {[%clk 0:02:28]} 20. h5 {[%clk 0:02:11]}  Nb6 {[%clk 0:02:00]} 21. Rxd8+ {[%clk 0:01:57]}  Rxd8 {[%clk 0:02:01]} 22. Rxd8+ {[%clk 0:01:57]}  Bxd8 {[%clk 0:02:00]} 23. axb5 {[%clk 0:01:57]}  axb5 {[%clk 0:01:59]} 24. Qxb5 {[%clk 0:01:58]}  Qxe4 {[%clk 0:01:59]} 25. Be3 {[%clk 0:01:46]}  Nd5 {[%clk 0:01:29]} 26. Bxc5 {[%clk 0:01:37]}  Qb1+ {[%clk 0:01:22]} 27. Kh2 {[%clk 0:01:33]}  Bc7+ {[%clk 0:01:18]} 28. g3 {[%clk 0:01:32]}  Qe4 {[%clk 0:01:18]} 29. Kg2 {[%clk 0:01:04]}  g5 {[%clk 0:01:13]} 30. hxg6 {[%clk 0:00:48]}  hxg6 {[%clk 0:01:14]} 31. Qb3 {[%clk 0:00:32]}  g5 {[%clk 0:01:06]} 32. Kg1 {[%clk 0:00:32]}  Kg7 {[%clk 0:01:00]} 33. Nd4 {[%clk 0:00:27]}  g4 {[%clk 0:00:48]} 34. Qc2 {[%clk 0:00:27]}  Qe1+ {[%clk 0:00:44]} 35. Kg2 {[%clk 0:00:27]}  Bxg3 {[%clk 0:00:31]} 36. Nf5+ {[%clk 0:00:27]}  Kg8 {[%clk 0:00:23]} 37. fxg3 {[%clk 0:00:22]}  Qe5 {[%clk 0:00:19]} 38. Bf2 {[%clk 0:00:19]}  Kf7 {[%clk 0:00:16]} 39. Kg1 {[%clk 0:00:20]}  Nb4 {[%clk 0:00:14]} 40. Qc4+ {[%clk 0:00:18]}  Kg6 {[%clk 0:00:13]} 41. Qxg4+ {[%clk 0:00:17]}  Kf7 {[%clk 0:00:13]} 42. Nh6+ {[%clk 0:00:17]}  Ke7 {[%clk 0:00:11]} 43. Qxb4+ {[%clk 0:00:18]} 1-0

[Event "December 12 Late 2023"]
[Site "https://www.chess.com"]
[Date "2023.12.12"]
[Round "2"]
[White "Smirnov, Anton"]
[Black "Laddha, Shubh Jayesh"]
[Result "1-0"]
[Board "20"]
[TimeControl "180+1"]
[WhiteFideId "3208923"]
[BlackFideId "30942799"]
[WhiteElo "2974"]
[BlackElo "2580"]
[WhiteTeam "AUS"]
[BlackTeam "USA"]
[WhiteClock "0:00:39"]
[BlackClock "0:00:00"]

1. e4 {[%clk 0:02:57]}  c5 {[%clk 0:02:59]} 2. Nf3 {[%clk 0:02:57]}  d6 {[%clk 0:03:00]} 3. d4 {[%clk 0:02:57]}  cxd4 {[%clk 0:03:01]} 4. Nxd4 {[%clk 0:02:58]}  Nf6 {[%clk 0:03:01]} 5. Nc3 {[%clk 0:02:58]}  g6 {[%clk 0:03:02]} 6. Be3 {[%clk 0:02:58]}  Bg7 {[%clk 0:03:03]} 7. Bc4 {[%clk 0:02:57]}  Nc6 {[%clk 0:03:03]} 8. f3 {[%clk 0:02:56]}  O-O {[%clk 0:03:03]} 9. Qd2 {[%clk 0:02:56]}  Bd7 {[%clk 0:03:03]} 10. Bb3 {[%clk 0:02:57]}  Rc8 {[%clk 0:03:02]} 11. h4 {[%clk 0:02:57]}  h5 {[%clk 0:03:01]} 12. O-O-O {[%clk 0:02:55]}  Nxd4 {[%clk 0:03:01]} 13. Bxd4 {[%clk 0:02:55]}  b5 {[%clk 0:03:01]} 14. e5 {[%clk 0:02:30]}  dxe5 {[%clk 0:02:59]} 15. Bxe5 {[%clk 0:02:31]}  Bc6 {[%clk 0:02:59]} 16. Qe3 {[%clk 0:02:28]}  Qa5 {[%clk 0:02:58]} 17. Ne2 {[%clk 0:02:17]}  b4 {[%clk 0:02:35]} 18. Nf4 {[%clk 0:02:02]}  Kh7 {[%clk 0:02:24]} 19. Rhe1 {[%clk 0:01:56]}  Ba4 {[%clk 0:02:18]} 20. Kb1 {[%clk 0:01:53]}  Bxb3 {[%clk 0:02:13]} 21. Qxb3 {[%clk 0:01:51]}  Rcd8 {[%clk 0:01:46]} 22. Rxd8 {[%clk 0:01:49]}  Rxd8 {[%clk 0:01:45]} 23. Bxf6 {[%clk 0:01:35]}  exf6 {[%clk 0:01:43]} 24. Qxf7 {[%clk 0:01:27]}  Qe5 {[%clk 0:01:34]} 25. Qxg6+ {[%clk 0:01:17]}  Kg8 {[%clk 0:01:31]} 26. Qe4 {[%clk 0:01:16]}  Qd6 {[%clk 0:01:09]} 27. Nd3 {[%clk 0:01:11]}  Qg3 {[%clk 0:01:05]} 28. Qxb4 {[%clk 0:01:03]}  Qxg2 {[%clk 0:00:59]} 29. Qe4 {[%clk 0:01:01]}  Qg3 {[%clk 0:00:36]} 30. a3 {[%clk 0:00:57]}  Rb8 {[%clk 0:00:21]} 31. Qd5+ {[%clk 0:00:55]}  Kf8 {[%clk 0:00:20]} 32. Re4 {[%clk 0:00:47]}  f5 {[%clk 0:00:09]} 33. Qxf5+ {[%clk 0:00:46]}  Kg8 {[%clk 0:00:10]} 34. Qd5+ {[%clk 0:00:46]}  Kh8 {[%clk 0:00:10]} 35. Qxh5+ {[%clk 0:00:47]}  Kg8 {[%clk 0:00:11]} 36. Qd5+ {[%clk 0:00:46]}  Kh8 {[%clk 0:00:10]} 37. Rg4 {[%clk 0:00:43]}  Qh3 {[%clk 0:00:06]} 38. Rxg7 {[%clk 0:00:41]}  Qh1+ {[%clk 0:00:03]} 39. Ka2 {[%clk 0:00:40]}  Kxg7 {[%clk 0:00:04]} 40. Qe5+ {[%clk 0:00:40]}  Kh7 {[%clk 0:00:04]} 41. Qc7+ {[%clk 0:00:40]}  Kh6 {[%clk 0:00:04]} 42. Qxb8 {[%clk 0:00:40]}  a5 {[%clk 0:00:04]} 43. Qh8+ {[%clk 0:00:37]}  Kg6 {[%clk 0:00:04]} 44. h5+ {[%clk 0:00:38]}  Kf7 {[%clk 0:00:03]} 45. Qh7+ {[%clk 0:00:38]}  Ke8 {[%clk 0:00:03]} 46. Qg6+ {[%clk 0:00:38]}  Kd7 {[%clk 0:00:03]} 47. Qg7+ {[%clk 0:00:38]}  Kd6 {[%clk 0:00:03]} 48. h6 {[%clk 0:00:39]}  a4 {[%clk 0:00:03]} 49. h7 {[%clk 0:00:38]}  Qxf3 {[%clk 0:00:02]} 50. Qe5+ {[%clk 0:00:37]}  Kc6 {[%clk 0:00:01]} 51. Nb4+ {[%clk 0:00:36]}  Kb7 {[%clk 0:00:02]} 52. Qd5+ {[%clk 0:00:37]}  Qxd5+ {[%clk 0:00:01]} 53. Nxd5 {[%clk 0:00:38]}  Ka6 {[%clk 0:00:01]} 54. h8=Q {[%clk 0:00:38]}  Ka7 {[%clk 0:00:01]} 55. Qg7+ {[%clk 0:00:38]}  Ka6 {[%clk 0:00:01]} 56. Qf6+ {[%clk 0:00:39]}  Kb5 {[%clk 0:00:00]} 57. Qb6+ {[%clk 0:00:39]} 1-0

[Event "December 12 Late 2023"]
[Site "https://www.chess.com"]
[Date "2023.12.12"]
[Round "2"]
[White "Khismatullin, Denis"]
[Black "Assylov, Miras"]
[Result "1-0"]
[Board "22"]
[TimeControl "180+1"]
[WhiteFideId "4142578"]
[BlackFideId "13728873"]
[WhiteElo "2962"]
[BlackElo "2576"]
[WhiteTeam "RUS"]
[BlackTeam "KAZ"]
[WhiteClock "0:00:13"]
[BlackClock "0:00:03"]

1. e4 {[%clk 0:03:00]}  c5 {[%clk 0:02:48]} 2. Nf3 {[%clk 0:03:00]}  e6 {[%clk 0:02:49]} 3. c3 {[%clk 0:02:59]}  Nf6 {[%clk 0:02:46]} 4. e5 {[%clk 0:02:59]}  Nd5 {[%clk 0:02:47]} 5. Bc4 {[%clk 0:02:59]}  d6 {[%clk 0:02:34]} 6. d4 {[%clk 0:02:58]}  cxd4 {[%clk 0:02:34]} 7. cxd4 {[%clk 0:02:58]}  Be7 {[%clk 0:02:34]} 8. O-O {[%clk 0:02:58]}  O-O {[%clk 0:02:34]} 9. Re1 {[%clk 0:02:56]}  Bd7 {[%clk 0:02:22]} 10. exd6 {[%clk 0:02:47]}  Bxd6 {[%clk 0:02:22]} 11. Nc3 {[%clk 0:02:48]}  Nxc3 {[%clk 0:02:17]} 12. bxc3 {[%clk 0:02:47]}  Bc6 {[%clk 0:02:18]} 13. Ne5 {[%clk 0:02:41]}  Qc7 {[%clk 0:02:08]} 14. Bf1 {[%clk 0:02:31]}  Nd7 {[%clk 0:01:48]} 15. Nxc6 {[%clk 0:02:30]}  Qxc6 {[%clk 0:01:49]} 16. c4 {[%clk 0:02:20]}  Nf6 {[%clk 0:01:49]} 17. g3 {[%clk 0:02:18]}  Rfd8 {[%clk 0:01:45]} 18. Qb3 {[%clk 0:02:15]}  Rac8 {[%clk 0:01:44]} 19. Bb2 {[%clk 0:02:12]}  b6 {[%clk 0:01:40]} 20. Rad1 {[%clk 0:02:10]}  Bf8 {[%clk 0:01:29]} 21. a4 {[%clk 0:01:57]}  Qd6 {[%clk 0:01:20]} 22. Bc3 {[%clk 0:01:52]}  h5 {[%clk 0:01:11]} 23. a5 {[%clk 0:01:48]}  h4 {[%clk 0:01:04]} 24. axb6 {[%clk 0:01:46]}  axb6 {[%clk 0:01:05]} 25. Rb1 {[%clk 0:01:44]}  hxg3 {[%clk 0:00:54]} 26. hxg3 {[%clk 0:01:43]}  Nd7 {[%clk 0:00:54]} 27. Red1 {[%clk 0:01:37]}  Ra8 {[%clk 0:00:52]} 28. Qc2 {[%clk 0:01:30]}  Qc7 {[%clk 0:00:50]} 29. Qe4 {[%clk 0:01:26]}  Ra3 {[%clk 0:00:49]} 30. Bb2 {[%clk 0:01:25]}  Rb3 {[%clk 0:00:48]} 31. d5 {[%clk 0:01:20]}  exd5 {[%clk 0:00:44]} 32. Qxd5 {[%clk 0:01:15]}  Be7 {[%clk 0:00:41]} 33. Qf5 {[%clk 0:00:57]}  Nc5 {[%clk 0:00:39]} 34. Be5 {[%clk 0:00:55]}  Qc8 {[%clk 0:00:36]} 35. Qxc8 {[%clk 0:00:52]}  Rxc8 {[%clk 0:00:37]} 36. Rxb3 {[%clk 0:00:51]}  Nxb3 {[%clk 0:00:37]} 37. Rd7 {[%clk 0:00:51]}  Bf6 {[%clk 0:00:31]} 38. Bxf6 {[%clk 0:00:46]}  gxf6 {[%clk 0:00:32]} 39. Bg2 {[%clk 0:00:46]}  Rxc4 {[%clk 0:00:17]} 40. Bd5 {[%clk 0:00:45]}  Rd4 {[%clk 0:00:14]} 41. Bxf7+ {[%clk 0:00:33]}  Kf8 {[%clk 0:00:14]} 42. Rc7 {[%clk 0:00:32]}  Nc5 {[%clk 0:00:08]} 43. Bh5 {[%clk 0:00:32]}  Rd7 {[%clk 0:00:08]} 44. Rc6 {[%clk 0:00:32]}  Ke7 {[%clk 0:00:08]} 45. Rxb6 {[%clk 0:00:32]}  Rc7 {[%clk 0:00:06]} 46. Rb1 {[%clk 0:00:30]}  Nd3 {[%clk 0:00:04]} 47. Kg2 {[%clk 0:00:29]}  Rc2 {[%clk 0:00:03]} 48. Rf1 {[%clk 0:00:29]}  Rd2 {[%clk 0:00:03]} 49. Bf3 {[%clk 0:00:28]}  Ne5 {[%clk 0:00:03]} 50. Be4 {[%clk 0:00:28]}  Kf7 {[%clk 0:00:04]} 51. Bf5 {[%clk 0:00:24]}  Rd5 {[%clk 0:00:02]} 52. Re1 {[%clk 0:00:21]}  Rc5 {[%clk 0:00:02]} 53. Be4 {[%clk 0:00:20]}  Ke6 {[%clk 0:00:02]} 54. Re2 {[%clk 0:00:20]}  Kf7 {[%clk 0:00:03]} 55. f4 {[%clk 0:00:20]}  Nc4 {[%clk 0:00:02]} 56. Bd3 {[%clk 0:00:20]}  Nd6 {[%clk 0:00:02]} 57. Kh3 {[%clk 0:00:19]}  Nf5 {[%clk 0:00:02]} 58. Be4 {[%clk 0:00:19]}  Nd6 {[%clk 0:00:02]} 59. Bf3 {[%clk 0:00:19]}  Nf5 {[%clk 0:00:02]} 60. Bh5+ {[%clk 0:00:18]}  Kg7 {[%clk 0:00:02]} 61. Bg4 {[%clk 0:00:19]}  Nh6 {[%clk 0:00:02]} 62. Be6 {[%clk 0:00:18]}  Rc7 {[%clk 0:00:02]} 63. g4 {[%clk 0:00:18]}  Re7 {[%clk 0:00:01]} 64. Kg3 {[%clk 0:00:16]}  Nf7 {[%clk 0:00:02]} 65. Kf3 {[%clk 0:00:16]}  Nd8 {[%clk 0:00:03]} 66. Bd5 {[%clk 0:00:15]}  Rxe2 {[%clk 0:00:03]} 67. Kxe2 {[%clk 0:00:16]}  Kf8 {[%clk 0:00:03]} 68. Kd3 {[%clk 0:00:16]}  Ke8 {[%clk 0:00:04]} 69. Ke4 {[%clk 0:00:16]}  Ke7 {[%clk 0:00:04]} 70. Kf5 {[%clk 0:00:16]}  Nf7 {[%clk 0:00:03]} 71. Bxf7 {[%clk 0:00:13]}  Kxf7 {[%clk 0:00:04]} 72. Ke4 {[%clk 0:00:12]}  Kg6 {[%clk 0:00:03]} 73. Kd5 {[%clk 0:00:11]}  Kf7 {[%clk 0:00:02]} 74. Kd6 {[%clk 0:00:12]}  Kg7 {[%clk 0:00:01]} 75. Ke6 {[%clk 0:00:11]}  Kg6 {[%clk 0:00:02]} 76. Ke7 {[%clk 0:00:11]}  f5 {[%clk 0:00:02]} 77. g5 {[%clk 0:00:11]}  Kh5 {[%clk 0:00:03]} 78. Kf6 {[%clk 0:00:11]}  Kg4 {[%clk 0:00:04]} 79. g6 {[%clk 0:00:11]}  Kxf4 {[%clk 0:00:04]} 80. g7 {[%clk 0:00:12]}  Ke4 {[%clk 0:00:05]} 81. g8=Q {[%clk 0:00:12]}  f4 {[%clk 0:00:06]} 82. Qc4+ {[%clk 0:00:12]}  Ke3 {[%clk 0:00:06]} 83. Kf5 {[%clk 0:00:13]}  f3 {[%clk 0:00:07]} 84. Qc3+ {[%clk 0:00:13]}  Ke2 {[%clk 0:00:07]} 85. Ke4 {[%clk 0:00:13]}  f2 {[%clk 0:00:07]} 86. Qc2+ {[%clk 0:00:14]}  Ke1 {[%clk 0:00:08]} 87. Ke3 {[%clk 0:00:13]}  f1=N+ {[%clk 0:00:04]} 88. Kd3 {[%clk 0:00:14]}  Ng3 {[%clk 0:00:03]} 89. Qg2 {[%clk 0:00:13]}  Nf1 {[%clk 0:00:03]} 90. Qe2# {[%clk 0:00:13]} 1-0

[Event "December 12 Late 2023"]
[Site "https://www.chess.com"]
[Date "2023.12.12"]
[Round "2"]
[White "Espinoza Villanueva, Rodrigo"]
[Black "Cordova, Emilio"]
[Result "0-1"]
[Board "26"]
[TimeControl "180+1"]
[WhiteFideId "5140188"]
[BlackFideId "3801497"]
[WhiteElo "2566"]
[BlackElo "2918"]
[WhiteTeam "MEX"]
[BlackTeam "PER"]
[WhiteClock "0:01:51"]
[BlackClock "0:02:35"]

1. d4 {[%clk 0:03:00]}  e6 {[%clk 0:02:59]} 2. c4 {[%clk 0:02:59]}  b6 {[%clk 0:02:59]} 3. Nf3 {[%clk 0:02:53]}  Bb7 {[%clk 0:02:59]} 4. e3 {[%clk 0:02:53]}  Bb4+ {[%clk 0:02:58]} 5. Nbd2 {[%clk 0:02:51]}  f5 {[%clk 0:02:57]} 6. a3 {[%clk 0:02:50]}  Bxd2+ {[%clk 0:02:57]} 7. Bxd2 {[%clk 0:02:51]}  Nf6 {[%clk 0:02:57]} 8. Bd3 {[%clk 0:02:50]}  O-O {[%clk 0:02:58]} 9. O-O {[%clk 0:02:49]}  d6 {[%clk 0:02:57]} 10. Bc3 {[%clk 0:02:41]}  Nbd7 {[%clk 0:02:56]} 11. b4 {[%clk 0:02:41]}  Qe8 {[%clk 0:02:56]} 12. Bc2 {[%clk 0:02:38]}  Ne4 {[%clk 0:02:54]} 13. Bb2 {[%clk 0:02:37]}  Qg6 {[%clk 0:02:53]} 14. d5 {[%clk 0:02:37]}  Rae8 {[%clk 0:02:49]} 15. dxe6 {[%clk 0:02:20]}  Rxe6 {[%clk 0:02:45]} 16. c5 {[%clk 0:02:07]}  Nd2 {[%clk 0:02:34]} 17. Qxd2 {[%clk 0:01:53]}  Bxf3 {[%clk 0:02:34]} 18. g3 {[%clk 0:01:54]}  Qh5 {[%clk 0:02:33]} 19. Bd1 {[%clk 0:01:53]}  Qxh2+ {[%clk 0:02:33]} 20. Kxh2 {[%clk 0:01:50]}  Rh6+ {[%clk 0:02:34]} 21. Kg1 {[%clk 0:01:51]}  Rh1# {[%clk 0:02:35]} 0-1

[Event "December 12 Late 2023"]
[Site "https://www.chess.com"]
[Date "2023.12.12"]
[Round "2"]
[White "Santos Flores, Alberto"]
[Black "Chigaev, Maksim"]
[Result "0-1"]
[Board "28"]
[TimeControl "180+1"]
[WhiteFideId "3601234"]
[BlackFideId "4108116"]
[WhiteElo "2563"]
[BlackElo "2912"]
[WhiteTeam "ECU"]
[BlackTeam "ESP"]
[WhiteClock "0:01:13"]
[BlackClock "0:01:42"]

1. e4 {[%clk 0:03:00]}  c5 {[%clk 0:02:57]} 2. Nf3 {[%clk 0:03:00]}  d6 {[%clk 0:02:57]} 3. Bb5+ {[%clk 0:03:00]}  Bd7 {[%clk 0:02:56]} 4. Bxd7+ {[%clk 0:03:00]}  Qxd7 {[%clk 0:02:57]} 5. c4 {[%clk 0:03:01]}  e5 {[%clk 0:02:58]} 6. Nc3 {[%clk 0:03:00]}  Nc6 {[%clk 0:02:58]} 7. d3 {[%clk 0:03:00]}  Be7 {[%clk 0:02:58]} 8. O-O {[%clk 0:03:00]}  Bd8 {[%clk 0:02:58]} 9. Nd5 {[%clk 0:02:57]}  Nge7 {[%clk 0:02:57]} 10. Nxe7 {[%clk 0:02:49]}  Bxe7 {[%clk 0:02:52]} 11. Be3 {[%clk 0:02:49]}  O-O {[%clk 0:02:50]} 12. Nd2 {[%clk 0:02:49]}  g6 {[%clk 0:02:40]} 13. f4 {[%clk 0:02:45]}  exf4 {[%clk 0:02:38]} 14. Bxf4 {[%clk 0:02:45]}  Bf6 {[%clk 0:02:37]} 15. Bh6 {[%clk 0:02:38]}  Bxb2 {[%clk 0:02:32]} 16. Bxf8 {[%clk 0:02:08]}  Bxa1 {[%clk 0:02:32]} 17. Qxa1 {[%clk 0:02:07]}  Rxf8 {[%clk 0:02:32]} 18. Nf3 {[%clk 0:02:08]}  Qe7 {[%clk 0:02:26]} 19. Qb2 {[%clk 0:02:04]}  b6 {[%clk 0:02:25]} 20. h3 {[%clk 0:02:02]}  Rd8 {[%clk 0:02:18]} 21. Qd2 {[%clk 0:01:57]}  Ne5 {[%clk 0:02:14]} 22. Qf4 {[%clk 0:01:53]}  Nxd3 {[%clk 0:02:10]} 23. Qh6 {[%clk 0:01:47]}  f6 {[%clk 0:02:10]} 24. Nh4 {[%clk 0:01:37]}  Ne5 {[%clk 0:02:02]} 25. Qf4 {[%clk 0:01:29]}  Nxc4 {[%clk 0:01:49]} 26. Qxf6 {[%clk 0:01:25]}  Qxf6 {[%clk 0:01:48]} 27. Rxf6 {[%clk 0:01:25]}  Re8 {[%clk 0:01:44]} 28. Rf4 {[%clk 0:01:13]}  Nd2 {[%clk 0:01:42]} 0-1

[Event "December 12 Late 2023"]
[Site "https://www.chess.com"]
[Date "2023.12.12"]
[Round "2"]
[White "Ashraf, Artin"]
[Black "Miranda, Rafael"]
[Result "1-0"]
[Board "30"]
[TimeControl "180+1"]
[WhiteFideId "22514805"]
[BlackFideId "130990"]
[WhiteElo "2901"]
[BlackElo "2555"]
[WhiteTeam "IRI"]
[BlackTeam "ARG"]
[WhiteClock "0:00:14"]
[BlackClock "0:00:32"]

1. d4 {[%clk 0:03:00]}  Nf6 {[%clk 0:02:59]} 2. Nc3 {[%clk 0:02:55]}  d5 {[%clk 0:02:59]} 3. Bf4 {[%clk 0:02:55]}  c5 {[%clk 0:02:58]} 4. e4 {[%clk 0:02:52]}  Nxe4 {[%clk 0:02:48]} 5. Nxe4 {[%clk 0:02:51]}  dxe4 {[%clk 0:02:49]} 6. dxc5 {[%clk 0:02:52]}  Nd7 {[%clk 0:02:47]} 7. b4 {[%clk 0:02:20]}  e5 {[%clk 0:02:47]} 8. Be3 {[%clk 0:02:20]}  Be7 {[%clk 0:02:45]} 9. Ne2 {[%clk 0:02:19]}  O-O {[%clk 0:02:45]} 10. Nc3 {[%clk 0:02:19]}  f5 {[%clk 0:02:44]} 11. Bc4+ {[%clk 0:02:19]}  Kh8 {[%clk 0:02:44]} 12. O-O {[%clk 0:02:19]}  a5 {[%clk 0:02:26]} 13. a3 {[%clk 0:02:18]}  axb4 {[%clk 0:02:26]} 14. axb4 {[%clk 0:02:19]}  Rxa1 {[%clk 0:02:25]} 15. Qxa1 {[%clk 0:02:19]}  f4 {[%clk 0:02:26]} 16. Bc1 {[%clk 0:02:19]}  f3 {[%clk 0:02:24]} 17. Nxe4 {[%clk 0:02:09]}  fxg2 {[%clk 0:02:24]} 18. Rd1 {[%clk 0:02:09]}  Qe8 {[%clk 0:02:22]} 19. Be3 {[%clk 0:01:59]}  Qg6 {[%clk 0:02:21]} 20. Bd3 {[%clk 0:01:58]}  Qh5 {[%clk 0:02:13]} 21. Re1 {[%clk 0:01:45]}  Nf6 {[%clk 0:02:10]} 22. Nxf6 {[%clk 0:01:45]}  Bxf6 {[%clk 0:02:11]} 23. Be4 {[%clk 0:01:45]}  Qg4 {[%clk 0:02:02]} 24. Bxg2 {[%clk 0:01:41]}  Bh4 {[%clk 0:01:50]} 25. Qxe5 {[%clk 0:01:38]}  Bd7 {[%clk 0:01:47]} 26. Bd4 {[%clk 0:01:32]}  Bc6 {[%clk 0:01:43]} 27. Re4 {[%clk 0:01:03]}  Bxe4 {[%clk 0:01:19]} 28. Qxe4 {[%clk 0:01:04]}  Qd1+ {[%clk 0:00:54]} 29. Bf1 {[%clk 0:01:03]}  Bf6 {[%clk 0:00:49]} 30. Be3 {[%clk 0:00:44]}  Qd7 {[%clk 0:00:49]} 31. Bd3 {[%clk 0:00:42]}  g6 {[%clk 0:00:50]} 32. Kf1 {[%clk 0:00:39]}  Qh3+ {[%clk 0:00:48]} 33. Ke2 {[%clk 0:00:39]}  Qxh2 {[%clk 0:00:45]} 34. Qxb7 {[%clk 0:00:38]}  Qh5+ {[%clk 0:00:45]} 35. Kd2 {[%clk 0:00:35]}  Qe5 {[%clk 0:00:41]} 36. Qe4 {[%clk 0:00:31]}  Qc3+ {[%clk 0:00:41]} 37. Ke2 {[%clk 0:00:31]}  Bg7 {[%clk 0:00:39]} 38. b5 {[%clk 0:00:26]}  Qf6 {[%clk 0:00:35]} 39. b6 {[%clk 0:00:20]}  Qf7 {[%clk 0:00:34]} 40. c6 {[%clk 0:00:19]}  Re8 {[%clk 0:00:34]} 41. Qc4 {[%clk 0:00:15]}  Bh6 {[%clk 0:00:32]} 42. Qxf7 {[%clk 0:00:14]} 1-0

[Event "December 12 Late 2023"]
[Site "https://www.chess.com"]
[Date "2023.12.12"]
[Round "2"]
[White "Rodrigue-Lemieux, Shawn"]
[Black "Przybylski, Wojciech"]
[Result "0-1"]
[Board "33"]
[TimeControl "180+1"]
[WhiteFideId "2620049"]
[BlackFideId "1117599"]
[WhiteElo "2896"]
[BlackElo "2546"]
[WhiteTeam "CAN"]
[BlackTeam "POL"]
[WhiteClock "0:00:00"]
[BlackClock "0:00:03"]

1. d4 {[%clk 0:03:00]}  Nf6 {[%clk 0:02:57]} 2. Bg5 {[%clk 0:02:58]}  e6 {[%clk 0:02:52]} 3. e4 {[%clk 0:02:57]}  h6 {[%clk 0:02:49]} 4. Bxf6 {[%clk 0:02:56]}  Qxf6 {[%clk 0:02:49]} 5. Nf3 {[%clk 0:02:56]}  d6 {[%clk 0:02:48]} 6. Nc3 {[%clk 0:02:54]}  g5 {[%clk 0:02:47]} 7. e5 {[%clk 0:02:52]}  Qd8 {[%clk 0:02:39]} 8. Bb5+ {[%clk 0:02:47]}  c6 {[%clk 0:02:37]} 9. Bd3 {[%clk 0:02:47]}  dxe5 {[%clk 0:02:33]} 10. Nxe5 {[%clk 0:02:45]}  Nd7 {[%clk 0:02:30]} 11. Qh5 {[%clk 0:02:35]}  Nxe5 {[%clk 0:02:23]} 12. dxe5 {[%clk 0:02:36]}  Bg7 {[%clk 0:02:16]} 13. O-O-O {[%clk 0:02:21]}  Bxe5 {[%clk 0:02:16]} 14. Ne4 {[%clk 0:02:04]}  Bd7 {[%clk 0:01:42]} 15. Nc5 {[%clk 0:01:49]}  Qb6 {[%clk 0:01:35]} 16. Nxd7 {[%clk 0:01:42]}  Bxb2+ {[%clk 0:00:59]} 17. Kb1 {[%clk 0:01:41]}  Qb4 {[%clk 0:00:55]} 18. Bc4 {[%clk 0:00:29]}  Bc3+ {[%clk 0:00:53]} 19. Bb3 {[%clk 0:00:29]}  Qa3 {[%clk 0:00:53]} 20. Nf6+ {[%clk 0:00:28]}  Bxf6 {[%clk 0:00:51]} 21. c3 {[%clk 0:00:28]}  Bxc3 {[%clk 0:00:33]} 22. Qe2 {[%clk 0:00:28]}  a5 {[%clk 0:00:12]} 23. Qc2 {[%clk 0:00:13]}  Bf6 {[%clk 0:00:11]} 24. Rd3 {[%clk 0:00:12]}  Qb4 {[%clk 0:00:10]} 25. a3 {[%clk 0:00:07]}  Qb6 {[%clk 0:00:09]} 26. Ka2 {[%clk 0:00:05]}  a4 {[%clk 0:00:09]} 27. Bc4 {[%clk 0:00:05]}  O-O {[%clk 0:00:07]} 28. Rb1 {[%clk 0:00:05]}  Qa5 {[%clk 0:00:07]} 29. Rd7 {[%clk 0:00:04]}  Rad8 {[%clk 0:00:07]} 30. Rdxb7 {[%clk 0:00:02]}  Rd2 {[%clk 0:00:06]} 31. Rc1 {[%clk 0:00:02]}  Rxc2+ {[%clk 0:00:07]} 32. Rxc2 {[%clk 0:00:03]}  Qe5 {[%clk 0:00:06]} 33. Rb1 {[%clk 0:00:03]}  Rd8 {[%clk 0:00:05]} 34. g3 {[%clk 0:00:03]}  Kg7 {[%clk 0:00:05]} 35. Rg1 {[%clk 0:00:01]}  Rd4 {[%clk 0:00:05]} 36. f4 {[%clk 0:00:01]}  Qe4 {[%clk 0:00:05]} 37. Rgc1 {[%clk 0:00:01]}  Qe3 {[%clk 0:00:04]} 38. Rc3 {[%clk 0:00:01]}  Qe4 {[%clk 0:00:04]} 39. R3c2 {[%clk 0:00:01]}  c5 {[%clk 0:00:05]} 40. fxg5 {[%clk 0:00:02]}  hxg5 {[%clk 0:00:04]} 41. h4 {[%clk 0:00:02]}  g4 {[%clk 0:00:04]} 42. h5 {[%clk 0:00:03]}  Qe5 {[%clk 0:00:03]} 43. h6+ {[%clk 0:00:03]}  Kxh6 {[%clk 0:00:02]} 44. Rh2+ {[%clk 0:00:02]}  Kg7 {[%clk 0:00:02]} 45. Re2 {[%clk 0:00:03]}  Qf5 {[%clk 0:00:02]} 46. Rec2 {[%clk 0:00:03]}  Qe5 {[%clk 0:00:02]} 47. Re2 {[%clk 0:00:03]}  Qxg3 {[%clk 0:00:02]} 48. Rec2 {[%clk 0:00:02]}  Qf3 {[%clk 0:00:02]} 49. Kb1 {[%clk 0:00:02]}  Qe4 {[%clk 0:00:02]} 50. Ka2 {[%clk 0:00:01]}  Rxc4 {[%clk 0:00:02]} 51. Rxc4 {[%clk 0:00:02]}  Qe2+ {[%clk 0:00:02]} 52. R1c2 {[%clk 0:00:02]}  Qd1 {[%clk 0:00:02]} 53. Rc1 {[%clk 0:00:01]}  Qd5 {[%clk 0:00:02]} 54. Kb1 {[%clk 0:00:01]}  g3 {[%clk 0:00:03]} 55. Rg4+ {[%clk 0:00:01]}  Kf8 {[%clk 0:00:03]} 56. Rxg3 {[%clk 0:00:02]}  Qf5+ {[%clk 0:00:04]} 57. Rc2 {[%clk 0:00:01]}  Qf1+ {[%clk 0:00:03]} 58. Rc1 {[%clk 0:00:01]}  Qe2 {[%clk 0:00:03]} 59. Rc2 {[%clk 0:00:00]}  Qe5 {[%clk 0:00:03]} 0-1